fUST/lending_fUST_20240928
["ID","MTS","AMOUNT","RATE_DAILY","PERIOD"]
[339377575,1727512239285,-500.0,0.00038759,7]
[339377576,1727512239294,-500.0,0.00038759,7]
[339377577,1727512239304,-500.0,0.00038759,7]
[339377578,1727512239313,-500.0,0.00038759,7]
[339377579,1727512239324,-500.0,0.00038759,7]
[339377580,1727512239333,-500.0,0.00038759,7]
[339377581,1727512239343,-500.0,0.00038759,7]
[339377582,1727512239353,-504.65577612,0.00038759,7]
[339377583,1727512239363,-500.0,0.00038759,7]
[339377584,1727512239373,-30935.7066151,0.0003876,120]
[339377585,1727512239484,-1568.68164536,0.0003876,120]
[339377586,1727512239493,-2639.35800583,0.0003876,7]
[339377587,1727512239503,-11794.32843081,0.0003876,120]
[339377656,1727512243818,-0.96446355,0.0003876,120]
[339377659,1727512243833,-7532.9978129,0.0003876,120]
[339377660,1727512244158,-73.60766555,0.0003876,120]
[339377692,1727512246719,-74.41509699,0.0003876,120]
[339377696,1727512379197,200.0,0.0003,120]
[339377698,1727512401258,200.0,0.00034,120]
[339377699,1727512439217,200.0,0.00034,120]
[339377700,1727512457721,200.0,0.00035,120]
[339377701,1727512512469,166.283078,0.00034932,2]
[339377702,1727512540206,228.7,0.00035,120]
[339377705,1727512770546,-161.044978,0.00035191,2]
[339377706,1727512770571,-201.210049,0.00035279,2]
[339377707,1727512770596,-193.16479581,0.00035372,2]
[339377708,1727512770621,-374.706376,0.00035472,2]
[339377709,1727512770647,-400.0,0.00035616,2]
[339377710,1727512770673,-174.164088,0.00035661,2]
[339377711,1727512770698,-174.164088,0.00035758,2]
[339377712,1727512770724,-174.164088,0.00035856,2]
[339377713,1727512770750,-174.164088,0.00035954,2]
[339377714,1727512770774,-201.210049,0.00035964,2]
[339377715,1727512770798,-200.0,0.00036,120]
[339377716,1727512770824,-174.164088,0.00036052,2]
[339377717,1727512770850,-174.164088,0.0003615,2]
[339377718,1727512770876,-174.164088,0.00036247,2]
[339377719,1727512770907,-174.164088,0.00036345,2]
[339377720,1727512770935,-174.164088,0.00036443,2]
[339377721,1727512770962,-174.164088,0.00036541,2]
[339377722,1727512770987,-174.164088,0.00036639,2]
[339377723,1727512771013,-201.210049,0.00036649,2]
[339377724,1727512771038,-172.764,0.00036649,46]
[339377725,1727512771063,-400.0,0.00036649,2]
[339377726,1727512771089,-174.164088,0.00036736,2]
[339377727,1727512771119,-174.164088,0.00036834,2]
[339377728,1727512771145,-174.164088,0.00036932,2]
[339377729,1727512771170,-2000.0,0.0003703,7]
[339377730,1727512771196,-174.164088,0.0003703,2]
[339377731,1727512771227,-174.164088,0.00037128,2]
[339377732,1727512771253,-174.164088,0.00037225,2]
[339377733,1727512771279,-174.164088,0.00037323,2]
[339377734,1727512771304,-174.164088,0.00037421,2]
[339377735,1727512771330,-174.164088,0.00037519,2]
[339377736,1727512771356,-200.0,0.00038,120]
[339377737,1727512771381,-9489.7586,0.00038,2]
[339377738,1727512771407,-1157.85428105,0.00038657,2]
[339377739,1727512771434,-500.0,0.00038749,7]
[339377740,1727512771459,-500.0,0.00038749,15]
[339377741,1727512771484,-155.0035581,0.00038749,15]
[339377742,1727512771510,-500.0,0.00038749,7]
[339377743,1727512771537,-500.0,0.00038749,7]
[339377744,1727512771564,-248.78642548,0.00038749,15]
[339377745,1727512771590,-208.91269556,0.00038749,7]
[339377746,1727512771618,-500.0,0.00038749,7]
[339377747,1727512771646,-500.0,0.00038749,7]
[339377748,1727512771674,-500.0,0.00038749,7]
[339377749,1727512771701,-500.0,0.00038749,7]
[339377750,1727512771728,-500.0,0.00038749,7]
[339377751,1727512771753,-500.0,0.00038749,7]
[339377752,1727512771780,-500.0,0.00038749,7]
[339377753,1727512771809,-51.092383,0.00038749,7]
[339377754,1727512771842,-19354.38949926,0.00038757,120]
[339377755,1727512771867,-2852.69942435,0.00038757,120]
[339377756,1727512790988,-448.907617,0.00038749,7]
[339377757,1727512791016,-500.0,0.00038749,7]
[339377758,1727512791046,-500.0,0.00038749,7]
[339377759,1727512791084,-500.0,0.00038749,7]
[339377760,1727512791123,-500.0,0.00038749,7]
[339377761,1727512791153,-500.0,0.00038749,7]
[339377762,1727512791181,-500.0,0.00038749,7]
[339377763,1727512791208,-500.0,0.00038749,7]
[339377764,1727512791238,-500.0,0.00038749,7]
[339377765,1727512791264,-9999.0,0.0003875,120]
[339377766,1727512791290,-500.0,0.0003876,120]
[339377767,1727512791317,-8206.35241627,0.0004,120]
[339377768,1727512791346,-200.0,0.0004,120]
[339377769,1727512791373,-400.0,0.00040952,2]
[339377770,1727512791398,-166.283078,0.00042221,120]
[339377771,1727512791424,-603.43072632,0.00045,100]
[339377772,1727512791461,-400.0,0.00046287,2]
[339377773,1727512791494,-76.02616241,0.00046502,2]
[339377774,1727512792881,-274.76223329,0.00046502,2]
[339377775,1727512792913,-306.9901874,0.00046502,2]
[339377776,1727512792946,-209.2405291,0.00046502,2]
[339377777,1727512792976,-209.2405291,0.00046502,2]
[339377778,1727512793008,-209.2405291,0.00046502,2]
[339377779,1727512793038,-506.55010428,0.00047108,10]
[339377780,1727512793069,-647.46606309,0.00047736,10]
[339377781,1727512793096,-166.283078,0.00049511,120]
[339377782,1727512793130,-9476.764935,0.0005,120]
[339377783,1727512793162,-200.0,0.0005,120]
[339377786,1727513085117,166.283078,0.00034932,2]
[339377788,1727513106172,-187.353188,0.00039319,2]
[339377789,1727513106208,-157.09,0.000417,31]
[339377790,1727513106234,-166.283078,0.00044209,120]
[339377791,1727513106260,-155.02308535,0.00045486,9]
[339377792,1727513106286,-518.7063075,0.00045586,2]
[339377793,1727513106316,-500.0,0.00049789,7]
[339377794,1727513106344,-578.76807728,0.00049789,7]
[339377795,1727513106370,-300.0,0.00049789,5]
[339377796,1727513106396,-9557.94136991,0.0004979,7]
[339377797,1727513106421,-12878.83489396,0.0004979,7]
[339377798,1727513107149,-25000.0,0.0004979,7]
[339377799,1727513108131,-1706.87516214,0.0004979,7]
[339377800,1727513108159,-500.0,0.00049799,120]
[339377801,1727513108185,-346.52394221,0.00049799,120]
[339377802,1727513108212,-22446.60089565,0.000498,120]
[339377803,1727513109224,-25000.0,0.000498,120]
[339377804,1727513110275,-25000.0,0.000498,120]
[339377805,1727513111274,-25000.0,0.000498,120]
[339377806,1727513112295,-25000.0,0.000498,120]
[339377807,1727513113313,-17387.39910435,0.000498,120]
[339377808,1727513113339,-185.58848472,0.000499,2]
[339377809,1727513113363,-265.74724651,0.0005,120]
[339377810,1727513113388,-300.0,0.0005,120]
[339377811,1727513115723,306.0,0.00046509,2]
[339377812,1727513148638,165.247402,0.00044276,2]
[339377813,1727513148843,165.247402,0.0004466,2]
[339377814,1727513149073,165.247402,0.00045045,2]
[339377815,1727513149283,165.247402,0.00045429,2]
[339377816,1727513149491,165.247402,0.00045814,2]
[339377817,1727513149691,165.247402,0.00046198,2]
[339377818,1727513149907,165.247402,0.00046583,2]
[339377819,1727513154154,-683.19628312,0.00051,85]
[339377820,1727513234096,-2316.80371688,0.00051,85]
[339377821,1727513234119,-1352.52018123,0.0005101,85]
[339377822,1727513235109,-1647.47981877,0.0005101,85]
[339377823,1727513235134,-2565.58596082,0.0005102,85]
[339377825,1727513237127,-540.52496285,0.0005102,85]
[339377826,1727513237163,-2221.68143133,0.0005102,85]
[339377827,1727513237185,-400.0,0.00051622,2]
[339377828,1727513237205,-166.283078,0.00053487,120]
[339377829,1727513237228,-627.28545889,0.00054694,28]
[339377830,1727513238150,-385.83703702,0.00054694,28]
[339377831,1727513238173,-4274.36704802,0.00054784,8]
[339377832,1727513250094,-1730.73215104,0.00054784,8]
[339377833,1727513251148,-3552.84217085,0.00054784,8]
[339377834,1727513251171,-419.82284941,0.00054784,8]
[339377835,1727513279089,400.0,0.00035616,2]
[339377836,1727513279295,400.0,0.00040952,2]
[339377837,1727513279500,400.0,0.00046287,2]
[339377838,1727513294879,150.0,0.0005,2]
[339377839,1727513359861,150.0,0.0005,2]
[339377846,1727513409055,232.6561572,0.00048729,2]
[339377872,1727513432647,-400.0,0.00051622,2]
[339377873,1727513432657,-500.46044418,0.00054773,7]
[339377874,1727513432666,-27.9276655,0.00054794,120]
[339377875,1727513432682,-472.0723345,0.00054794,120]
[339377876,1727513432692,-500.0,0.00054794,120]
[339377877,1727513432702,-500.0,0.00054794,120]
[339377878,1727513432711,-355.65019265,0.00054794,120]
[339377879,1727513432721,-500.0,0.00054794,120]
[339377880,1727513432730,-500.0,0.00054794,7]
[339377881,1727513432741,-500.0,0.00054794,120]
[339377882,1727513432751,-518.02164479,0.00054794,120]
[339377883,1727513432760,-2156.95,0.00054794,120]
[339377884,1727513432769,-500.0,0.00054794,120]
[339377885,1727513432781,-1749.99,0.00054794,120]
[339377886,1727513432792,-500.0,0.00054794,120]
[339377887,1727513432808,-500.0,0.00054794,120]
[339377888,1727513432817,-500.0,0.00054794,120]
[339377889,1727513432826,-500.0,0.00054794,120]
[339377890,1727513432835,-4171.59,0.00054794,120]
[339377891,1727513432845,-500.0,0.00054794,20]
[339377892,1727513432855,-259.523163,0.00054794,120]
[339377893,1727513432864,-500.0,0.00054794,120]
[339377894,1727513432873,-500.0,0.00054794,120]
[339377895,1727513432883,-500.0,0.00054794,120]
[339377896,1727513432893,-301.97533099,0.00054794,120]
[339377897,1727513432902,-1876.26,0.00054794,120]
[339377898,1727513432912,-1249.16,0.00054794,120]
[339377899,1727513432921,-500.0,0.00054794,120]
[339377900,1727513432930,-525.0,0.00056388,120]
[339377901,1727513432940,-150.0,0.00056388,120]
[339377902,1727513432949,-1217.0,0.00056388,120]
[339377903,1727513432959,-400.0,0.00056957,2]
[339377904,1727513432968,-187.353188,0.00058978,30]
[339377905,1727513432979,-525.0,0.00059388,120]
[339377906,1727513432990,-150.0,0.00059388,120]
[339377907,1727513433000,-1217.0,0.00059388,120]
[339377908,1727513433009,-200.0,0.0006,120]
[339377909,1727513433019,-172.765,0.00061099,120]
[339377910,1727513433029,-400.0,0.00062293,2]
[339377911,1727513433038,-525.0,0.00062388,120]
[339377912,1727513433050,-150.0,0.00062388,120]
[339377913,1727513433059,-1217.0,0.00062388,120]
[339377914,1727513433070,-166.283078,0.00062765,120]
[339377915,1727513433080,-886.48218393,0.00063243,28]
[339377916,1727513433090,-430.50407554,0.00063343,30]
[339377917,1727513433100,-502.18884846,0.00063343,120]
[339377918,1727513433110,-152.0,0.00065753,120]
[339377919,1727513433120,-400.0,0.00067628,2]
[339377920,1727513433129,-1000.0,0.00068493,60]
[339377921,1727513433143,-1000.0,0.00068493,60]
[339377922,1727513433152,-1000.0,0.00068493,60]
[339377923,1727513433163,-1000.0,0.00068493,60]
[339377924,1727513433173,-1006.43397274,0.00068493,60]
[339377925,1727513433184,-3000.0,0.00069,120]
[339377926,1727513433195,-3000.0,0.0006901,120]
[339377927,1727513433204,-3000.0,0.0006902,120]
[339377928,1727513433216,-3000.0,0.0006903,120]
[339377929,1727513433226,-5583.357569,0.0006904,120]
[339377930,1727513433236,-200.0,0.0007,120]
[339377931,1727513433245,-200.0,0.0007,120]
[339377932,1727513433254,-166.283078,0.00072042,120]
[339377933,1727513433264,-400.0,0.00072963,2]
[339377934,1727513433274,-1556.78373502,0.00073,120]
[339377935,1727513433283,-2080.45876031,0.00074,120]
[339377936,1727513433292,-5000.0,0.000745,120]
[339377937,1727513433304,-181.6,0.0007598,30]
[339377938,1727513433313,-151.33,0.0007598,30]
[339377939,1727513433321,-756.68,0.0007598,30]
[339377940,1727513433330,-6500.0,0.0007598,120]
[339377941,1727513433340,-1468.78,0.0007598,3]
[339377942,1727513433350,-592.56675955,0.00075989,120]
[339377943,1727513433359,-59600.1759451,0.0007599,13]
[339377944,1727513433369,-1484.46412708,0.0007599,13]
[339377945,1727513433379,-185.58848471,0.00076602,2]
[339377946,1727513433388,-150.0,0.00076701,120]
[339377947,1727513433398,-59600.1759451,0.00076702,13]
[339377948,1727513433407,-1348.5231223,0.00076702,13]
[339377949,1727513433420,-135.94100478,0.00076702,13]
[339377950,1727513433430,-134.27326653,0.00076712,120]
[339377963,1727513439062,-441.40722447,0.0007599,30]
[339377964,1727513439074,-14727.64931351,0.0007599,30]
[339377981,1727513440790,-192.30357234,0.0007599,30]
[339378097,1727513444082,-1223.98,0.0007598,3]
[339378098,1727513444091,-98157.37231265,0.0007599,30]
[339378099,1727513444103,-264.46625028,0.0007599,30]
[339378100,1727513444912,-760.23845973,0.0007599,30]
[339378101,1727513444924,-609.51885624,0.0007599,30]
[339378102,1727513444936,-3586.63888426,0.0007599,30]
[339378106,1727513446835,-11285.9478183,0.00075,120]
[339378108,1727513489617,154.16,0.000266,31]
[339378109,1727513489670,154.16,0.000266,31]
[339378110,1727513489727,154.16,0.000304,31]
[339378111,1727513489792,154.16,0.000304,31]
[339378112,1727513489849,154.16,0.000304,31]
[339378113,1727513489907,154.16,0.000304,31]
[339378114,1727513490032,154.16,0.000341,31]
[339378115,1727513490125,154.16,0.000341,31]
[339378116,1727513490173,154.16,0.000341,31]
[339378117,1727513490228,154.16,0.000341,31]
[339378118,1727513490342,154.16,0.000379,31]
[339378119,1727513490392,154.16,0.000379,31]
[339378120,1727513490447,154.16,0.000379,31]
[339378121,1727513490501,154.16,0.000379,31]
[339378122,1727513490564,154.16,0.000417,31]
[339378123,1727513490625,154.16,0.000417,31]
[339378124,1727513490687,154.16,0.000417,31]
[339378125,1727513490751,154.16,0.000417,31]
[339378126,1727513490806,154.16,0.000417,31]
[339378127,1727513490864,154.16,0.000417,31]
[339378128,1727513504358,582.67719322,0.00046516,2]
[339378129,1727513558849,23838.733844,0.0003,2]
[339378130,1727513558875,24800.0,0.0003,2]
[339378131,1727513558907,25000.0,0.0003,2]
[339378132,1727513558931,25000.0,0.0003,2]
[339378133,1727513558956,25000.0,0.0003,2]
[339378134,1727513558981,25000.0,0.0003,2]
[339378137,1727513937955,-166.283078,0.00034932,2]
[339378138,1727513958559,2743.0,0.00035,2]
[339378139,1727514024076,22090.716922,0.00035,2]
[339378140,1727514049182,25000.0,0.00032,2]
[339378141,1727514049207,25000.0,0.00032,2]
[339378142,1727514049233,25000.0,0.00032,2]
[339378144,1727514081981,1000.4957992,0.00031,2]
[339378146,1727514303163,25000.0,0.00032,120]
[339378147,1727514353176,-1521.31973894,0.00032,120]
[339378148,1727514367166,19910.2244395,0.0003,14]
[339378149,1727514428152,-400.0,0.00031999,2]
[339378150,1727514428179,-300.0,0.00031999,2]
[339378151,1727514428201,-3030.88513588,0.00032,120]
[339378152,1727514429282,-6111.79512518,0.00032,120]
[339378153,1727514429305,-471.71812604,0.00034725,2]
[339378154,1727514429327,-1109.46820137,0.00034825,7]
[339378155,1727514429351,-166.283078,0.00034932,2]
[339378156,1727514429372,-150.471453,0.00035,2]
[339378157,1727514429393,-500.0,0.00035,60]
[339378158,1727514429415,-229.0,0.00035199,2]
[339378159,1727514429441,-85.23889117,0.00035616,2]
[339378160,1727514432122,-314.76110883,0.00035616,2]
[339378161,1727514432143,-206.00686569,0.00040445,15]
[339378162,1727514432177,-353.69313431,0.00040445,15]
[339378163,1727514432198,-400.0,0.00040952,2]
[339378164,1727514432226,-163.675183,0.00045319,2]
[339378165,1727514432252,-163.675183,0.00046004,2]
[339378166,1727514432273,-400.0,0.00046287,2]
[339378167,1727514432295,-186.505843,0.00046388,2]
[339378168,1727514432316,-209.2405291,0.00046516,2]
[339378169,1727514432336,-209.2405291,0.00046516,2]
[339378170,1727514432357,-209.2405291,0.00046516,2]
[339378171,1727514432378,-60.51025551,0.00046516,2]
[339378172,1727514452112,-306.0,0.00045557,2]
[339378173,1727514452133,-209.2405291,0.00045694,2]
[339378174,1727514452154,-148.73027359,0.00046516,2]
[339378175,1727514452176,-111.05221899,0.00046516,2]
[339378177,1727514491262,151.0,0.0003,120]
[339378213,1727514631821,-307.4288392,0.00045694,2]
[339378215,1727514631833,-209.2405291,0.00045694,2]
[339378217,1727514631843,-209.2405291,0.00045694,2]
[339378219,1727514631853,-209.2405291,0.00045694,2]
[339378221,1727514631862,-209.2405291,0.00045694,2]
[339378223,1727514631872,-209.2405291,0.00046516,2]
[339378225,1727514631882,-209.2405291,0.00046516,2]
[339378227,1727514631891,-200.0,0.00046516,2]
[339378229,1727514631900,-171.601261,0.00046545,2]
[339378231,1727514631910,-163.675183,0.00046648,2]
[339378233,1727514631921,-327.993927,0.0004665,2]
[339378235,1727514631930,-9.3776152,0.00047194,2]
[339378237,1727514631943,-177.1282278,0.00047194,2]
[339378239,1727514631953,-186.505843,0.00048,2]
[339378241,1727514631963,-759.6865722,0.0004828,2]
[339378243,1727514631974,-186.505843,0.00048805,2]
[339378245,1727514631985,-604.23,0.00049799,30]
[339378247,1727514631995,-151.0,0.0005,120]
[339378249,1727514632004,-604.23,0.00050484,33]
[339378251,1727514632013,-604.23,0.00051169,36]
[339378253,1727514632023,-400.0,0.00051622,2]
[339378255,1727514632034,-604.23,0.00051854,39]
[339378257,1727514632043,-604.23,0.00052539,42]
[339378259,1727514632053,-559.7,0.00052859,90]
[339378261,1727514632066,-604.23,0.00053224,45]
[339378263,1727514632077,-1356.88,0.0005366,90]
[339378265,1727514632087,-1877.99,0.000538,90]
[339378267,1727514632096,-604.23,0.00053909,48]
[339378269,1727514632106,-604.23,0.00054594,51]
[339378282,1727514632227,-501.25267831,0.00054773,10]
[339378284,1727514632236,-301.02467576,0.00054773,10]
[339378286,1727514632246,-500.0,0.00054773,10]
[339378288,1727514632255,-500.0,0.00054773,10]
[339378290,1727514632265,-494.52524599,0.00054773,10]
[339378292,1727514632274,-501.47214977,0.00054773,10]
[339378294,1727514632284,-501.82860116,0.00054773,7]
[339378296,1727514632294,-1526.38462705,0.00054774,8]
[339378298,1727514632303,-3052.7692541,0.00054784,8]
[339378300,1727514632313,-613.1,0.00054784,3]
[339378302,1727514632322,-617.96910257,0.00054794,120]
[339378304,1727514632334,-501.54124146,0.00054794,120]
[339378306,1727514632343,-505.74807235,0.00054794,120]
[339378307,1727514632353,-500.0,0.00054794,30]
[339378309,1727514632363,-500.0,0.00054794,120]
[339378310,1727514632372,-500.0,0.00054794,120]
[339378312,1727514632381,-504.0697534,0.00054794,120]
[339378314,1727514632391,-503.59073482,0.00054794,120]
[339378315,1727514632400,-537.95057231,0.00054794,120]
[339378316,1727514632410,-601.86233059,0.00054794,120]
[339378317,1727514632420,-503.14133961,0.00054794,120]
[339378318,1727514632430,-611.61541553,0.00054794,120]
[339378319,1727514632441,-502.27059024,0.00054794,120]
[339378320,1727514632451,-500.0,0.00054794,120]
[339378321,1727514632462,-530.62813689,0.00054794,120]
[339378322,1727514632471,-525.43074887,0.00054794,120]
[339378323,1727514632484,-518.71754515,0.00054794,120]
[339378324,1727514632494,-518.69653491,0.00054794,120]
[339378325,1727514632504,-504.94217766,0.00054794,120]
[339378326,1727514632514,-537.53356167,0.00054794,120]
[339378327,1727514632524,-507.58440621,0.00054794,120]
[339378328,1727514632534,-512.91971207,0.00054794,120]
[339378329,1727514632548,-512.03743345,0.00054794,120]
[339378330,1727514632558,-172.765,0.00054794,103]
[339378331,1727514632569,-517.79069873,0.00054794,120]
[339378332,1727514632579,-2067.08,0.00054794,120]
[339378333,1727514632589,-509.2934825,0.00054794,120]
[339378334,1727514632598,-1033.46436918,0.00054794,2]
[339378335,1727514632606,-504.12551891,0.00054794,120]
[339378336,1727514632617,-507.18531981,0.00054794,120]
[339378337,1727514632626,-506.95419433,0.00054794,120]
[339378338,1727514632636,-539.85857088,0.00054794,120]
[339378339,1727514632645,-504.31196214,0.00054794,120]
[339378340,1727514632654,-522.05394282,0.00054794,120]
[339378341,1727514632664,-503.80524397,0.00054794,120]
[339378342,1727514632674,-506.87013283,0.00054794,120]
[339378343,1727514632683,-503.97393288,0.00054794,120]
[339378344,1727514632693,-253.08614534,0.00054794,120]
[339378345,1727514632703,-506.31560017,0.00054794,120]
[339378346,1727514632713,-513.72775056,0.00054794,30]
[339378347,1727514632723,-519.48,0.00054794,120]
[339378348,1727514632734,-507.68272478,0.00054794,120]
[339378349,1727514632745,-503.935842,0.00054794,120]
[339378350,1727514632757,-509.35333733,0.00054794,120]
[339378351,1727514632766,-500.0,0.00054794,120]
[339378352,1727514632776,-532.62365134,0.00054794,120]
[339378353,1727514632785,-505.35287215,0.00054794,120]
[339378354,1727514632795,-507.37558065,0.00054794,120]
[339378355,1727514632805,-502.72513155,0.00054794,120]
[339378356,1727514632815,-500.0,0.00054794,120]
[339378357,1727514632824,-506.80824147,0.00054794,25]
[339378358,1727514632835,-535.75810244,0.00054794,120]
[339378359,1727514632846,-502.94967843,0.00054794,120]
[339378360,1727514632856,-496.03749968,0.00054794,120]
[339378361,1727514632867,-515.12637395,0.00054794,120]
[339378362,1727514632878,-519.686569,0.00054794,120]
[339378363,1727514632888,-510.02039123,0.00054794,120]
[339378364,1727514632898,-504.48052033,0.00054794,120]
[339378365,1727514632907,-504.64579035,0.00054794,120]
[339378366,1727514632918,-506.73897324,0.00054794,120]
[339378367,1727514632927,-520.50778251,0.00054794,120]
[339378368,1727514632937,-360.14302887,0.00054794,120]
[339378369,1727514632947,-500.0,0.00054794,120]
[339378370,1727514632957,-501.6737584,0.00054794,120]
[339378371,1727514632966,-503.03647725,0.00054794,120]
[339378372,1727514632976,-502.40518937,0.00054794,120]
[339378373,1727514632986,-507.55563239,0.00054794,120]
[339378374,1727514632996,-503.07197462,0.00054794,120]
[339378375,1727514633005,-500.0,0.00054794,120]
[339378376,1727514633015,-510.4352327,0.00054794,120]
[339378377,1727514633025,-503.41542766,0.00054794,120]
[339378378,1727514633035,-500.0,0.00054794,120]
[339378379,1727514633044,-504.51596428,0.00054794,120]
[339378380,1727514633054,-508.82485193,0.00054794,120]
[339378381,1727514633063,-502.38241902,0.00054794,120]
[339378382,1727514633073,-502.10807601,0.00054794,120]
[339378383,1727514633084,-502.10989363,0.00054794,120]
[339378384,1727514633094,-513.38757889,0.00054794,120]
[339378385,1727514633104,-505.83461546,0.00054794,120]
[339378386,1727514633114,-504.68182148,0.00054794,120]
[339378387,1727514633124,-504.30149172,0.00054794,120]
[339378388,1727514633133,-517.80802409,0.00054794,120]
[339378389,1727514633143,-502.63056433,0.00054794,120]
[339378390,1727514633153,-504.63529382,0.00054794,120]
[339378391,1727514633162,-503.88076816,0.00054794,120]
[339378392,1727514633172,-502.92422996,0.00054794,120]
[339378393,1727514633182,-506.72050483,0.00054794,120]
[339378394,1727514633191,-513.94978794,0.00054794,120]
[339378395,1727514633200,-508.58491153,0.00054794,120]
[339378396,1727514633209,-509.95887229,0.00054794,120]
[339378397,1727514633219,-504.54469493,0.00054794,120]
[339378398,1727514633228,-504.70451612,0.00054794,120]
[339378399,1727514633238,-301.99208116,0.00054794,120]
[339378400,1727514633247,-512.01931138,0.00054794,120]
[339378401,1727514633257,-512.44309703,0.00054794,120]
[339378402,1727514633267,-510.19584789,0.00054794,120]
[339378403,1727514633276,-506.53547252,0.00054794,120]
[339378404,1727514633285,-501.91876306,0.00054794,120]
[339378405,1727514633295,-510.62682224,0.00054794,120]
[339378406,1727514633304,-505.64789389,0.00054794,120]
[339378407,1727514633314,-502.89104929,0.00054794,120]
[339378408,1727514633324,-506.81523662,0.00054794,120]
[339378409,1727514633336,-505.22008611,0.00054794,120]
[339378410,1727514633345,-506.82880351,0.00054794,120]
[339378411,1727514633355,-511.67490975,0.00054794,120]
[339378412,1727514633364,-516.09037643,0.00054794,120]
[339378413,1727514633374,-508.60440036,0.00054794,120]
[339378414,1727514633384,-510.704548,0.00054794,120]
[339378415,1727514633393,-514.8745528,0.00054794,120]
[339378416,1727514633404,-506.00075408,0.00054794,120]
[339378417,1727514633414,-502.92896129,0.00054794,120]
[339378418,1727514633423,-504.20514778,0.00054794,120]
[339378419,1727514633433,-504.71029426,0.00054794,120]
[339378420,1727514633443,-504.26875344,0.00054794,120]
[339378421,1727514633453,-504.55212042,0.00054794,120]
[339378422,1727514633462,-503.55429193,0.00054794,120]
[339378423,1727514633472,-507.05771932,0.00054794,120]
[339378424,1727514633481,-511.75451842,0.00054794,120]
[339378425,1727514633490,-504.7289614,0.00054794,120]
[339378426,1727514633500,-501.19013447,0.00054794,120]
[339378427,1727514633510,-509.28110634,0.00054794,120]
[339378428,1727514633519,-515.82656513,0.00054794,120]
[339378429,1727514633528,-494.38776502,0.00054794,120]
[339378430,1727514633542,-500.0,0.00054794,120]
[339378431,1727514633552,-501.736766,0.00054794,120]
[339378432,1727514633561,-509.80332141,0.00054794,120]
[339378433,1727514633571,-213.17472136,0.00054794,120]
[339378434,1727514633582,-501.89816328,0.00054794,7]
[339378435,1727514633592,-512.53024685,0.00054794,120]
[339378436,1727514633601,-507.16328798,0.00054794,120]
[339378437,1727514633610,-500.0,0.00054794,120]
[339378438,1727514633620,-514.37898111,0.00054794,120]
[339378439,1727514633633,-500.0,0.00054794,120]
[339378440,1727514633642,-501.63857094,0.00054794,120]
[339378441,1727514633652,-513.75799327,0.00054794,120]
[339378442,1727514633661,-501.47879223,0.00054794,120]
[339378443,1727514633671,-510.1647182,0.00054794,120]
[339378444,1727514633682,-503.92107054,0.00054794,120]
[339378445,1727514633691,-512.36110698,0.00054794,120]
[339378446,1727514633701,-504.34754028,0.00054794,120]
[339378447,1727514633711,-501.40249407,0.00054794,120]
[339378448,1727514633720,-509.35410867,0.00054794,120]
[339378449,1727514633729,-508.91254763,0.00054794,120]
[339378450,1727514633739,-504.79138166,0.00054794,120]
[339378451,1727514633748,-201.74,0.00054794,7]
[339378452,1727514633758,-503.44723597,0.00054794,120]
[339378453,1727514633767,-500.0,0.00054794,120]
[339378454,1727514633776,-503.74011265,0.00054794,120]
[339378455,1727514633786,-1084.29,0.00054794,120]
[339378456,1727514633795,-503.49400358,0.00054794,120]
[339378457,1727514633805,-345.10701549,0.00054794,120]
[339378458,1727514633815,-509.60928433,0.00054794,120]